[Event "Early-Titled-Tuesday-Blitz-November-28-2023"]
[Site "Chess.com"]
[Date "2023.11.28"]
[Round "8"]
[White "Gabix_94"]
[Black "PabloZarnicki"]
[Result "1-0"]
[WhiteElo "2744"]
[BlackElo "2546"]
[TimeControl "180+1"]
[EndTime "9:31:25 PST"]
[Termination "Gabix_94 won by checkmate"]

1. e4 {[%clk 0:03:00.9]} 1... e5 {[%clk 0:02:54.3]} 2. Nf3 {[%clk 0:02:58.8]}
2... Nf6 {[%clk 0:02:53.8]} 3. d4 {[%clk 0:02:56.8]} 3... Nxe4 {[%clk
0:02:52.1]} 4. Bd3 {[%clk 0:02:57.1]} 4... d5 {[%clk 0:02:51.3]} 5. dxe5 {[%clk
0:02:57.5]} 5... Nc6 {[%clk 0:02:50.8]} 6. Nc3 {[%clk 0:02:53.9]} 6... Nxc3
{[%clk 0:02:47.1]} 7. bxc3 {[%clk 0:02:54.8]} 7... Be7 {[%clk 0:02:46.9]} 8. h3
{[%clk 0:02:52.2]} 8... O-O {[%clk 0:02:46.4]} 9. O-O {[%clk 0:02:52.9]} 9...
Be6 {[%clk 0:02:46.3]} 10. Rb1 {[%clk 0:02:51.2]} 10... Rb8 {[%clk 0:02:45.7]}
11. Re1 {[%clk 0:02:50.4]} 11... Qd7 {[%clk 0:02:43.2]} 12. Ng5 {[%clk
0:02:41.7]} 12... Bxg5 {[%clk 0:02:41.4]} 13. Bxg5 {[%clk 0:02:42.6]} 13... h6
{[%clk 0:02:41.5]} 14. Bf4 {[%clk 0:02:39.5]} 14... b6 {[%clk 0:02:40.1]} 15.
Bb5 {[%clk 0:02:36.2]} 15... Rbd8 {[%clk 0:02:35]} 16. Qh5 {[%clk 0:02:32.8]}
16... Qe8 {[%clk 0:02:26.9]} 17. Bxh6 {[%clk 0:02:29.1]} 17... gxh6 {[%clk
0:02:06.7]} 18. Qxh6 {[%clk 0:02:30]} 18... Bd7 {[%clk 0:01:29.1]} 19. Bxc6
{[%clk 0:02:12.6]} 19... Bxc6 {[%clk 0:01:03.2]} 20. Re3 {[%clk 0:02:12]} 20...
f6 {[%clk 0:00:59.5]} 21. Rg3+ {[%clk 0:02:10.8]} 21... Kf7 {[%clk 0:00:59.5]}
22. Qxf6# {[%clk 0:02:10.5]} 1-0

[Event "Early-Titled-Tuesday-Blitz-November-28-2023"]
[Site "Chess.com"]
[Date "2023.11.28"]
[Round "8"]
[White "WindWhistler11"]
[Black "kkpanu9"]
[Result "1-0"]
[WhiteElo "2563"]
[BlackElo "2093"]
[TimeControl "180+1"]
[EndTime "9:31:50 PST"]
[Termination "WindWhistler11 won by resignation"]

1. Nf3 {[%clk 0:02:56.9]} 1... Nf6 {[%clk 0:02:59.6]} 2. g3 {[%clk 0:02:54.7]}
2... e6 {[%clk 0:02:59.2]} 3. Bg2 {[%clk 0:02:54.8]} 3... d5 {[%clk 0:02:59.6]}
4. c4 {[%clk 0:02:55.2]} 4... Be7 {[%clk 0:02:59.7]} 5. O-O {[%clk 0:02:55.5]}
5... c6 {[%clk 0:02:59.7]} 6. b3 {[%clk 0:02:56.2]} 6... O-O {[%clk 0:02:59.8]}
7. Bb2 {[%clk 0:02:56.8]} 7... Nbd7 {[%clk 0:03:00.1]} 8. Na3 {[%clk 0:02:57.2]}
8... b6 {[%clk 0:03:00.2]} 9. Nc2 {[%clk 0:02:57.9]} 9... Ba6 {[%clk 0:02:58.5]}
10. d3 {[%clk 0:02:58.3]} 10... b5 {[%clk 0:02:57.2]} 11. Ncd4 {[%clk
0:02:50.1]} 11... Rc8 {[%clk 0:02:47.9]} 12. Rc1 {[%clk 0:02:41.4]} 12... bxc4
{[%clk 0:02:42.4]} 13. dxc4 {[%clk 0:02:40.1]} 13... c5 {[%clk 0:02:39]} 14. Nb5
{[%clk 0:02:31.3]} 14... Bxb5 {[%clk 0:02:32.9]} 15. cxb5 {[%clk 0:02:32.2]}
15... Qb6 {[%clk 0:02:22.9]} 16. a4 {[%clk 0:02:27.8]} 16... a6 {[%clk
0:02:15.8]} 17. bxa6 {[%clk 0:02:22.3]} 17... Qxa6 {[%clk 0:02:16.7]} 18. Nd2
{[%clk 0:02:18.4]} 18... Ne5 {[%clk 0:02:08.1]} 19. Bxe5 {[%clk 0:02:16.2]}
19... Nd7 {[%clk 0:01:58.3]} 20. Ba1 {[%clk 0:02:12.8]} 20... f6 {[%clk
0:01:56.8]} 21. e4 {[%clk 0:02:04.6]} 21... d4 {[%clk 0:01:55]} 22. Nc4 {[%clk
0:02:00.2]} 22... Rb8 {[%clk 0:01:51.3]} 23. f4 {[%clk 0:01:56.4]} 23... Rb7
{[%clk 0:01:44.4]} 24. e5 {[%clk 0:01:54.5]} 24... Rb4 {[%clk 0:01:43.8]} 25.
exf6 {[%clk 0:01:52.8]} 25... Nxf6 {[%clk 0:01:39]} 26. Re1 {[%clk 0:01:51.5]}
26... Rfb8 {[%clk 0:01:37.4]} 27. Bh3 {[%clk 0:01:51.3]} 27... Rxb3 {[%clk
0:01:29.5]} 28. Bxe6+ {[%clk 0:01:48.6]} 28... Kh8 {[%clk 0:01:29.6]} 29. Ne5
{[%clk 0:01:48.5]} 29... g6 {[%clk 0:01:24.4]} 30. Bxb3 {[%clk 0:01:44.5]} 1-0

[Event "Early-Titled-Tuesday-Blitz-November-28-2023"]
[Site "Chess.com"]
[Date "2023.11.28"]
[Round "8"]
[White "AsaHoffmann"]
[Black "tusplingher"]
[Result "0-1"]
[WhiteElo "2346"]
[BlackElo "2502"]
[TimeControl "180+1"]
[EndTime "9:31:53 PST"]
[Termination "tusplingher won by resignation"]

1. d4 {[%clk 0:02:55.7]} 1... Nf6 {[%clk 0:02:59.3]} 2. Bg5 {[%clk 0:02:55.2]}
2... c6 {[%clk 0:02:59.1]} 3. Nd2 {[%clk 0:02:54.1]} 3... d5 {[%clk 0:02:58.1]}
4. e3 {[%clk 0:02:54]} 4... Bf5 {[%clk 0:02:57.6]} 5. f4 {[%clk 0:02:52.4]} 5...
Nbd7 {[%clk 0:02:56.1]} 6. Ngf3 {[%clk 0:02:52.2]} 6... e6 {[%clk 0:02:54.7]} 7.
Be2 {[%clk 0:02:50.2]} 7... Be7 {[%clk 0:02:54.6]} 8. O-O {[%clk 0:02:49.7]}
8... Ne4 {[%clk 0:02:55]} 9. Bxe7 {[%clk 0:02:44.1]} 9... Qxe7 {[%clk
0:02:55.9]} 10. Nxe4 {[%clk 0:02:43.5]} 10... Bxe4 {[%clk 0:02:55.5]} 11. Ne5
{[%clk 0:02:42.6]} 11... Nxe5 {[%clk 0:02:52.9]} 12. fxe5 {[%clk 0:02:42.3]}
12... Qg5 {[%clk 0:02:52.5]} 13. Bf3 {[%clk 0:02:31]} 13... Qxe3+ {[%clk
0:02:51.4]} 14. Kh1 {[%clk 0:02:31]} 14... Bxf3 {[%clk 0:02:47.7]} 15. Rxf3
{[%clk 0:02:29.7]} 15... Qg5 {[%clk 0:02:47]} 16. Qd3 {[%clk 0:02:27.9]} 16...
O-O {[%clk 0:02:45.9]} 17. Raf1 {[%clk 0:02:26.3]} 17... Qg6 {[%clk 0:02:36.3]}
18. Qd2 {[%clk 0:02:24.2]} 18... f6 {[%clk 0:02:19]} 19. Rg3 {[%clk 0:02:22.5]}
19... fxe5 {[%clk 0:02:14.7]} 20. Re1 {[%clk 0:02:06.9]} 20... Qe4 {[%clk
0:02:05.3]} 21. Rge3 {[%clk 0:01:55.9]} 21... Qxd4 {[%clk 0:02:01.8]} 22. Qxd4
{[%clk 0:01:55]} 22... exd4 {[%clk 0:02:01.6]} 23. Rxe6 {[%clk 0:01:54.9]} 23...
Rf2 {[%clk 0:01:55.9]} 24. Re7 {[%clk 0:01:51.1]} 24... Rxc2 {[%clk 0:01:41.9]}
25. Rxb7 {[%clk 0:01:50.4]} 25... d3 {[%clk 0:01:39.5]} 26. Rd1 {[%clk
0:01:26.8]} 26... d2 {[%clk 0:01:36.8]} 27. Kg1 {[%clk 0:01:22.6]} 27... Rc1
{[%clk 0:01:34]} 0-1

[Event "Early-Titled-Tuesday-Blitz-November-28-2023"]
[Site "Chess.com"]
[Date "2023.11.28"]
[Round "8"]
[White "AryanTari"]
[Black "AlexPapasimakopoulos"]
[Result "0-1"]
[WhiteElo "2975"]
[BlackElo "2663"]
[TimeControl "180+1"]
[EndTime "9:32:08 PST"]
[Termination "AlexPapasimakopoulos won by resignation"]

1. e4 {[%clk 0:03:00.9]} 1... e6 {[%clk 0:02:57]} 2. c3 {[%clk 0:03:00.8]} 2...
d5 {[%clk 0:02:57.5]} 3. e5 {[%clk 0:02:58]} 3... c5 {[%clk 0:02:57.3]} 4. d4
{[%clk 0:02:57.9]} 4... Nc6 {[%clk 0:02:58]} 5. Nf3 {[%clk 0:02:58.1]} 5... Bd7
{[%clk 0:02:57.4]} 6. Be2 {[%clk 0:02:55.6]} 6... f6 {[%clk 0:02:56.4]} 7. O-O
{[%clk 0:02:52.9]} 7... fxe5 {[%clk 0:02:56.5]} 8. Nxe5 {[%clk 0:02:53.3]} 8...
Nxe5 {[%clk 0:02:56.8]} 9. dxe5 {[%clk 0:02:54.2]} 9... Qc7 {[%clk 0:02:57.4]}
10. Re1 {[%clk 0:02:54]} 10... O-O-O {[%clk 0:02:55.6]} 11. Bf1 {[%clk
0:02:54.5]} 11... Nh6 {[%clk 0:02:55.2]} 12. Bg5 {[%clk 0:02:46.3]} 12... Re8
{[%clk 0:02:53]} 13. c4 {[%clk 0:02:46.4]} 13... Nf7 {[%clk 0:02:52]} 14. Bf4
{[%clk 0:02:46.4]} 14... g5 {[%clk 0:02:48.8]} 15. Bg3 {[%clk 0:02:45.4]} 15...
h5 {[%clk 0:02:49.3]} 16. Qf3 {[%clk 0:02:38.1]} 16... Bc6 {[%clk 0:02:42.6]}
17. h4 {[%clk 0:02:36.2]} 17... d4 {[%clk 0:02:36.3]} 18. Qd1 {[%clk 0:02:29.7]}
18... gxh4 {[%clk 0:02:25.7]} 19. Bxh4 {[%clk 0:02:21.5]} 19... Nxe5 {[%clk
0:02:26.2]} 20. Nd2 {[%clk 0:01:59.8]} 20... Ng4 {[%clk 0:02:24.2]} 21. g3
{[%clk 0:02:00]} 21... Be7 {[%clk 0:02:15.1]} 22. Bxe7 {[%clk 0:01:59.8]} 22...
Rxe7 {[%clk 0:02:14.5]} 23. Bg2 {[%clk 0:01:39.1]} 23... Rf8 {[%clk 0:02:06]}
24. Bxc6 {[%clk 0:01:14.7]} 24... Nxf2 {[%clk 0:01:58.3]} 25. Qg4 {[%clk
0:01:14.9]} 25... hxg4 {[%clk 0:01:23.7]} 0-1

[Event "Early-Titled-Tuesday-Blitz-November-28-2023"]
[Site "Chess.com"]
[Date "2023.11.28"]
[Round "8"]
[White "SashaKuzhilniy"]
[Black "colegiodemadrid"]
[Result "1-0"]
[WhiteElo "2635"]
[BlackElo "2488"]
[TimeControl "180+1"]
[EndTime "9:32:31 PST"]
[Termination "SashaKuzhilniy won by resignation"]

1. b3 {[%clk 0:02:55.9]} 1... g6 {[%clk 0:02:58.7]} 2. Bb2 {[%clk 0:02:54.9]}
2... Nf6 {[%clk 0:02:59.3]} 3. g3 {[%clk 0:02:54]} 3... Bg7 {[%clk 0:02:59.3]}
4. Bg2 {[%clk 0:02:54.9]} 4... O-O {[%clk 0:02:59.8]} 5. Nf3 {[%clk 0:02:55.1]}
5... a5 {[%clk 0:02:59.6]} 6. a3 {[%clk 0:02:54.8]} 6... a4 {[%clk 0:02:59.8]}
7. b4 {[%clk 0:02:54.5]} 7... d6 {[%clk 0:02:59.9]} 8. O-O {[%clk 0:02:53.7]}
8... e5 {[%clk 0:03:00.5]} 9. c4 {[%clk 0:02:54]} 9... Re8 {[%clk 0:02:56.8]}
10. Nc3 {[%clk 0:02:50.1]} 10... Nc6 {[%clk 0:02:49.9]} 11. d3 {[%clk
0:02:43.3]} 11... Bf5 {[%clk 0:02:36.9]} 12. e4 {[%clk 0:02:41.8]} 12... Bg4
{[%clk 0:02:36.9]} 13. Nxa4 {[%clk 0:02:41.1]} 13... Bxf3 {[%clk 0:02:23.8]} 14.
Bxf3 {[%clk 0:02:39.9]} 14... Nd7 {[%clk 0:02:24.7]} 15. Nc3 {[%clk 0:02:37.8]}
15... Nd4 {[%clk 0:02:21.4]} 16. Bg2 {[%clk 0:02:37.8]} 16... c6 {[%clk
0:02:17.8]} 17. Ne2 {[%clk 0:02:37.6]} 17... c5 {[%clk 0:02:16.1]} 18. Nxd4
{[%clk 0:02:30.7]} 18... exd4 {[%clk 0:02:16.1]} 19. f4 {[%clk 0:02:30.5]} 19...
Qb6 {[%clk 0:02:13.3]} 20. b5 {[%clk 0:02:28.3]} 20... Qa5 {[%clk 0:02:10.3]}
21. a4 {[%clk 0:02:24.6]} 21... Rab8 {[%clk 0:02:06.3]} 22. Bc1 {[%clk
0:02:21.7]} 22... b6 {[%clk 0:02:00.6]} 23. Bd2 {[%clk 0:02:20.2]} 23... Qa7
{[%clk 0:02:00.7]} 24. a5 {[%clk 0:02:20.1]} 24... bxa5 {[%clk 0:02:00.9]} 25.
Rxa5 {[%clk 0:02:19.5]} 25... Qc7 {[%clk 0:02:01.5]} 26. Qb3 {[%clk 0:02:19.4]}
26... Nb6 {[%clk 0:02:01.1]} 27. Rfa1 {[%clk 0:02:19.7]} 27... g5 {[%clk
0:01:57.9]} 28. fxg5 {[%clk 0:02:17.3]} 28... Nd7 {[%clk 0:01:56.2]} 29. Ra7
{[%clk 0:02:05.6]} 29... Qd8 {[%clk 0:01:56.2]} 30. Bh3 {[%clk 0:01:57.4]} 30...
Ne5 {[%clk 0:01:56.3]} 31. Kg2 {[%clk 0:01:56.3]} 31... Rb6 {[%clk 0:01:51]} 32.
Bf5 {[%clk 0:01:54.8]} 32... Rb8 {[%clk 0:01:46.2]} 33. h4 {[%clk 0:01:53.6]}
33... Re7 {[%clk 0:01:44]} 34. Rxe7 {[%clk 0:01:50.2]} 34... Qxe7 {[%clk
0:01:44.9]} 35. Ra6 {[%clk 0:01:49.5]} 35... Bf8 {[%clk 0:01:32.3]} 36. Qa3
{[%clk 0:01:46.1]} 36... Kg7 {[%clk 0:01:29.5]} 37. Kf1 {[%clk 0:01:38.6]} 37...
Kg8 {[%clk 0:01:28.9]} 38. Ke2 {[%clk 0:01:38.7]} 38... Kg7 {[%clk 0:01:28.3]}
39. Ra7 {[%clk 0:01:38.1]} 39... Rb7 {[%clk 0:01:27]} 40. b6 {[%clk 0:01:35.9]}
40... Kg8 {[%clk 0:01:20.4]} 41. Qa6 {[%clk 0:01:35.1]} 1-0

[Event "Early-Titled-Tuesday-Blitz-November-28-2023"]
[Site "Chess.com"]
[Date "2023.11.28"]
[Round "8"]
[White "dianamirza"]
[Black "Nancy11111"]
[Result "1-0"]
[WhiteElo "2001"]
[BlackElo "2265"]
[TimeControl "180+1"]
[EndTime "9:32:41 PST"]
[Termination "dianamirza won by checkmate"]

1. g3 {[%clk 0:03:00.9]} 1... d6 {[%clk 0:03:00.9]} 2. Bg2 {[%clk 0:03:00.9]}
2... Nf6 {[%clk 0:02:59]} 3. e3 {[%clk 0:03:01.4]} 3... c6 {[%clk 0:02:59.1]} 4.
d4 {[%clk 0:03:02.3]} 4... Nbd7 {[%clk 0:02:58.2]} 5. c4 {[%clk 0:03:03.2]} 5...
e5 {[%clk 0:02:58.4]} 6. Nc3 {[%clk 0:03:00.7]} 6... Be7 {[%clk 0:02:57.7]} 7.
Nge2 {[%clk 0:03:00.3]} 7... O-O {[%clk 0:02:58.6]} 8. O-O {[%clk 0:03:01]} 8...
h6 {[%clk 0:02:55.6]} 9. b3 {[%clk 0:02:58.2]} 9... Nb6 {[%clk 0:02:54]} 10. Bb2
{[%clk 0:02:56.9]} 10... Bf5 {[%clk 0:02:54.1]} 11. h3 {[%clk 0:02:44.3]} 11...
a5 {[%clk 0:02:53.6]} 12. Kh2 {[%clk 0:02:44.3]} 12... a4 {[%clk 0:02:52.8]} 13.
Nxa4 {[%clk 0:02:40.2]} 13... Nxa4 {[%clk 0:02:52.1]} 14. bxa4 {[%clk
0:02:41.1]} 14... exd4 {[%clk 0:02:49.7]} 15. Nxd4 {[%clk 0:02:37.9]} 15... Bg6
{[%clk 0:02:49]} 16. Qb3 {[%clk 0:02:34.6]} 16... Qc7 {[%clk 0:02:41.1]} 17. f4
{[%clk 0:02:27]} 17... Ne4 {[%clk 0:02:37.7]} 18. Qd1 {[%clk 0:01:55]} 18... d5
{[%clk 0:02:26.5]} 19. cxd5 {[%clk 0:01:49.5]} 19... cxd5 {[%clk 0:02:26.6]} 20.
Rc1 {[%clk 0:01:49.2]} 20... Qb6 {[%clk 0:02:25.4]} 21. Ba1 {[%clk 0:01:39]}
21... Rfc8 {[%clk 0:02:15]} 22. f5 {[%clk 0:01:30.6]} 22... Bh7 {[%clk
0:02:12.4]} 23. Qg4 {[%clk 0:01:14.7]} 23... Nf6 {[%clk 0:02:06]} 24. Qe2 {[%clk
0:01:05.9]} 24... Bd6 {[%clk 0:02:05.6]} 25. Nb5 {[%clk 0:01:00.3]} 25... Rxc1
{[%clk 0:01:56]} 26. Rxc1 {[%clk 0:00:57.9]} 26... Bxf5 {[%clk 0:01:55.6]} 27.
Bxf6 {[%clk 0:00:55.4]} 27... gxf6 {[%clk 0:01:55.5]} 28. Bxd5 {[%clk
0:00:55.5]} 28... Rxa4 {[%clk 0:01:53]} 29. Qh5 {[%clk 0:00:42.1]} 29... Qxb5
{[%clk 0:01:44.9]} 30. Qxf7+ {[%clk 0:00:38.9]} 30... Kh8 {[%clk 0:01:42.9]} 31.
Qg8# {[%clk 0:00:39.1]} 1-0

[Event "Early-Titled-Tuesday-Blitz-November-28-2023"]
[Site "Chess.com"]
[Date "2023.11.28"]
[Round "8"]
[White "Eagle_2019"]
[Black "Igor_Lysyj"]
[Result "1-0"]
[WhiteElo "2688"]
[BlackElo "2798"]
[TimeControl "180+1"]
[EndTime "9:33:02 PST"]
[Termination "Eagle_2019 won by resignation"]

1. d4 {[%clk 0:03:00.9]} 1... d5 {[%clk 0:02:56.5]} 2. Bg5 {[%clk 0:02:59.3]}
2... c5 {[%clk 0:02:52.6]} 3. c3 {[%clk 0:02:55.3]} 3... Qb6 {[%clk 0:02:45.8]}
4. Qc2 {[%clk 0:02:48.5]} 4... cxd4 {[%clk 0:02:41.5]} 5. cxd4 {[%clk
0:02:48.3]} 5... Nc6 {[%clk 0:02:41.8]} 6. e3 {[%clk 0:02:48]} 6... Bf5 {[%clk
0:02:29.9]} 7. Qxf5 {[%clk 0:01:53.8]} 7... Qxb2 {[%clk 0:02:29.1]} 8. Qd3
{[%clk 0:01:41.8]} 8... e6 {[%clk 0:00:45.5]} 9. Nf3 {[%clk 0:01:34.6]} 9...
Qxa1 {[%clk 0:00:34.3]} 10. Qb3 {[%clk 0:01:32.8]} 10... Ba3 {[%clk 0:00:22.9]}
11. Qxb7 {[%clk 0:01:29.2]} 11... Bb4+ {[%clk 0:00:22.3]} 12. Ke2 {[%clk
0:01:28]} 12... Qb2+ {[%clk 0:00:19.2]} 13. Nfd2 {[%clk 0:01:26.7]} 13... Nge7
{[%clk 0:00:16.4]} 14. Qxa8+ {[%clk 0:01:25.5]} 14... Kd7 {[%clk 0:00:16.4]} 15.
Qxh8 {[%clk 0:01:24.3]} 15... f6 {[%clk 0:00:15.7]} 16. Bh4 {[%clk 0:01:19.7]}
16... Qxa2 {[%clk 0:00:15.3]} 17. Qxg7 {[%clk 0:01:18.5]} 1-0

[Event "Early-Titled-Tuesday-Blitz-November-28-2023"]
[Site "Chess.com"]
[Date "2023.11.28"]
[Round "8"]
[White "MIss_MIaMI"]
[Black "TimGrutter03"]
[Result "0-1"]
[WhiteElo "2401"]
[BlackElo "2570"]
[TimeControl "180+1"]
[EndTime "9:33:04 PST"]
[Termination "TimGrutter03 won by checkmate"]

1. e4 {[%clk 0:03:00.3]} 1... g6 {[%clk 0:03:00.4]} 2. Nf3 {[%clk 0:03:00.1]}
2... Bg7 {[%clk 0:03:01.3]} 3. d4 {[%clk 0:03:00.7]} 3... d6 {[%clk 0:03:01.8]}
4. c3 {[%clk 0:03:00.7]} 4... Nc6 {[%clk 0:03:01.5]} 5. Bd3 {[%clk 0:02:43.8]}
5... e5 {[%clk 0:03:00.8]} 6. dxe5 {[%clk 0:02:43.1]} 6... Nxe5 {[%clk
0:02:56.5]} 7. Nxe5 {[%clk 0:02:40.4]} 7... Bxe5 {[%clk 0:02:56.7]} 8. O-O
{[%clk 0:02:33.2]} 8... Ne7 {[%clk 0:02:54.7]} 9. f4 {[%clk 0:02:30.8]} 9... Bg7
{[%clk 0:02:55.2]} 10. f5 {[%clk 0:02:31]} 10... Nc6 {[%clk 0:02:52.1]} 11. Bf4
{[%clk 0:02:17.7]} 11... Ne5 {[%clk 0:02:41.2]} 12. Bc2 {[%clk 0:02:07.1]} 12...
Qe7 {[%clk 0:02:34.3]} 13. Kh1 {[%clk 0:01:52.9]} 13... Bd7 {[%clk 0:02:31.4]}
14. Nd2 {[%clk 0:01:42.2]} 14... O-O-O {[%clk 0:02:29.6]} 15. Nf3 {[%clk
0:01:38.1]} 15... Nxf3 {[%clk 0:02:22.9]} 16. Qxf3 {[%clk 0:01:39]} 16... gxf5
{[%clk 0:02:20.4]} 17. exf5 {[%clk 0:01:39.9]} 17... Bc6 {[%clk 0:02:19.7]} 18.
Qf2 {[%clk 0:01:39.8]} 18... Kb8 {[%clk 0:02:14.5]} 19. a4 {[%clk 0:01:36.9]}
19... Be5 {[%clk 0:02:09.5]} 20. Be3 {[%clk 0:01:35.6]} 20... Rhg8 {[%clk
0:01:54.9]} 21. f6 {[%clk 0:01:06.6]} 21... Rxg2 {[%clk 0:01:46.9]} 22. Qxg2
{[%clk 0:00:48.4]} 22... Bxg2+ {[%clk 0:01:47.8]} 23. Kxg2 {[%clk 0:00:49.3]}
23... Rg8+ {[%clk 0:01:39.7]} 24. Kh1 {[%clk 0:00:44.4]} 24... Qe6 {[%clk
0:01:38.8]} 25. Rad1 {[%clk 0:00:36.8]} 25... Qh3 {[%clk 0:01:31.3]} 26. Rg1
{[%clk 0:00:27.9]} 26... Qxh2# {[%clk 0:01:13.2]} 0-1

[Event "Early-Titled-Tuesday-Blitz-November-28-2023"]
[Site "Chess.com"]
[Date "2023.11.28"]
[Round "8"]
[White "noblerone"]
[Black "KVAIDAN"]
[Result "1-0"]
[WhiteElo "2512"]
[BlackElo "2350"]
[TimeControl "180+1"]
[EndTime "9:33:08 PST"]
[Termination "noblerone won by resignation"]

1. d4 {[%clk 0:03:00.9]} 1... e6 {[%clk 0:02:54.6]} 2. Nf3 {[%clk 0:03:01.2]}
2... f5 {[%clk 0:02:54.4]} 3. Bf4 {[%clk 0:02:59.8]} 3... Nf6 {[%clk 0:02:54]}
4. e3 {[%clk 0:02:59]} 4... Be7 {[%clk 0:02:53.9]} 5. Be2 {[%clk 0:02:56.1]}
5... O-O {[%clk 0:02:54.4]} 6. h3 {[%clk 0:02:54.8]} 6... b6 {[%clk 0:02:54.2]}
7. O-O {[%clk 0:02:54]} 7... Bb7 {[%clk 0:02:54.8]} 8. c4 {[%clk 0:02:54.7]}
8... Ne4 {[%clk 0:02:54.9]} 9. Nc3 {[%clk 0:02:54.7]} 9... Nxc3 {[%clk
0:02:53.9]} 10. bxc3 {[%clk 0:02:55.6]} 10... Nc6 {[%clk 0:02:51.5]} 11. Bh2
{[%clk 0:02:54]} 11... Na5 {[%clk 0:02:46.1]} 12. Rb1 {[%clk 0:02:42.5]} 12...
Be4 {[%clk 0:02:42.1]} 13. Bd3 {[%clk 0:02:32.8]} 13... d6 {[%clk 0:02:26.9]}
14. Bxe4 {[%clk 0:02:29.5]} 14... fxe4 {[%clk 0:02:26.8]} 15. Nd2 {[%clk
0:02:30.4]} 15... d5 {[%clk 0:02:23.5]} 16. cxd5 {[%clk 0:02:27.9]} 16... exd5
{[%clk 0:02:24.1]} 17. c4 {[%clk 0:02:18.6]} 17... c6 {[%clk 0:02:21.7]} 18.
cxd5 {[%clk 0:02:13.7]} 18... cxd5 {[%clk 0:02:21.8]} 19. Qh5 {[%clk 0:02:11.3]}
19... Qd7 {[%clk 0:02:16.8]} 20. Rfc1 {[%clk 0:02:03.2]} 20... Rac8 {[%clk
0:02:15.4]} 21. Be5 {[%clk 0:01:58.2]} 21... Nc6 {[%clk 0:02:04.6]} 22. Nf1
{[%clk 0:01:40.5]} 22... Rf5 {[%clk 0:02:00.5]} 23. Qg4 {[%clk 0:01:33.8]} 23...
Nxe5 {[%clk 0:01:36.3]} 24. dxe5 {[%clk 0:01:33.6]} 24... Rcf8 {[%clk
0:01:28.3]} 25. Ng3 {[%clk 0:01:28]} 25... Ba3 {[%clk 0:01:16.6]} 26. Nxf5
{[%clk 0:01:22.9]} 26... Rxf5 {[%clk 0:01:15.5]} 27. Rc7 {[%clk 0:01:14.3]}
27... Qxc7 {[%clk 0:01:11.2]} 28. Qxf5 {[%clk 0:01:14.4]} 28... Qe7 {[%clk
0:00:48.3]} 29. Rd1 {[%clk 0:01:09.9]} 29... g6 {[%clk 0:00:43]} 30. Qc8+ {[%clk
0:01:08.2]} 30... Kg7 {[%clk 0:00:42.7]} 31. Rxd5 {[%clk 0:01:05.5]} 1-0

[Event "Early-Titled-Tuesday-Blitz-November-28-2023"]
[Site "Chess.com"]
[Date "2023.11.28"]
[Round "8"]
[White "GatoRojo150"]
[Black "HajiyevKanan"]
[Result "1-0"]
[WhiteElo "2617"]
[BlackElo "2493"]
[TimeControl "180+1"]
[EndTime "9:33:11 PST"]
[Termination "GatoRojo150 won by resignation"]

1. e4 {[%clk 0:03:00.9]} 1... c6 {[%clk 0:03:00.9]} 2. Nc3 {[%clk 0:03:00.5]}
2... d5 {[%clk 0:03:00.8]} 3. Nf3 {[%clk 0:03:00.9]} 3... a6 {[%clk 0:03:00.7]}
4. d4 {[%clk 0:02:59.6]} 4... Bg4 {[%clk 0:03:00.6]} 5. Be2 {[%clk 0:02:59.1]}
5... e6 {[%clk 0:03:00.9]} 6. O-O {[%clk 0:02:58.5]} 6... Nf6 {[%clk 0:03:01.3]}
7. e5 {[%clk 0:02:58.8]} 7... Nfd7 {[%clk 0:03:01]} 8. Ng5 {[%clk 0:02:59.1]}
8... Bf5 {[%clk 0:03:00.5]} 9. Bh5 {[%clk 0:02:57.2]} 9... Bg6 {[%clk
0:02:57.1]} 10. Bxg6 {[%clk 0:02:56.9]} 10... hxg6 {[%clk 0:02:58]} 11. Qg4
{[%clk 0:02:56.7]} 11... c5 {[%clk 0:02:50.4]} 12. Nxe6 {[%clk 0:02:51]} 12...
Qb6 {[%clk 0:02:36.7]} 13. Nxd5 {[%clk 0:02:44.1]} 13... Qc6 {[%clk 0:02:19.9]}
14. Ndc7+ {[%clk 0:02:33.3]} 14... Ke7 {[%clk 0:02:12.8]} 15. d5 {[%clk
0:02:27.9]} 15... Nxe5 {[%clk 0:02:00.1]} 16. Qg3 {[%clk 0:02:08.9]} 16... Qd6
{[%clk 0:01:52.8]} 17. Bg5+ {[%clk 0:02:06.6]} 17... f6 {[%clk 0:01:51.5]} 18.
Nxa8 {[%clk 0:02:04.2]} 18... fxg5 {[%clk 0:01:47]} 19. Rae1 {[%clk 0:02:02.3]}
19... Nbd7 {[%clk 0:01:14.5]} 20. Nxg5 {[%clk 0:01:48.7]} 20... Kd8 {[%clk
0:01:05.1]} 21. f4 {[%clk 0:01:48.8]} 21... Qxd5 {[%clk 0:00:42]} 22. fxe5
{[%clk 0:01:45.9]} 22... Be7 {[%clk 0:00:35.4]} 23. Nf7+ {[%clk 0:01:45.3]}
23... Kc8 {[%clk 0:00:32.7]} 24. Nxh8 {[%clk 0:01:45.4]} 24... Qd4+ {[%clk
0:00:20.3]} 25. Kh1 {[%clk 0:01:44.5]} 25... Bh4 {[%clk 0:00:20.3]} 26. Qh3
{[%clk 0:01:33.3]} 26... Bxe1 {[%clk 0:00:19.7]} 27. Nb6+ {[%clk 0:01:25.7]}
27... Kc7 {[%clk 0:00:17.8]} 28. Qxd7+ {[%clk 0:01:25.7]} 28... Qxd7 {[%clk
0:00:16.9]} 29. Nxd7 {[%clk 0:01:26.6]} 1-0